{"text_format":"3","workbook":"xlsx","n_sheets":2,"sheets":["Factura de cobro","Configuración de la compañía"],"not_rendered":{"images":1,"defined_names":27},"read":"whole","date_system":"1900"}

{"sheet":"Factura de cobro","index":0,"n_rows":35,"n_cols":7,"rows_kept":35,"merged":[[1,1,1,2],[1,3,2,4],[1,6,2,6],[3,3,3,4],[4,3,4,4],[5,3,5,4],[23,1,23,3],[24,1,24,3],[25,1,25,3],[26,1,26,3],[34,1,34,4]]}
[null,"FACTURA","0005"]
[null,{"$f":"TODAY()","v":"2018-07-13"},null,{"$f":"TotalDeFactura","v":79.65},null," ","Configuración de la compañía"]
[null,"VENCIMIENTO DEL PAGO:",{"$f":"TODAY()+15","v":"2018-07-28"},null,null," "]
[null,"NAIARA PADILLA",null,"ADVENTURE WORKS"]
[null,"Fabrikam, Inc.",null,"23456 Maple Street"]
[null,"1234 First Street",null,"Orange Grove, CA 09876"]
[null,"Forest,  OR 12345"]
[null,"CANTIDAD","DETALLES","PRECIO POR UNIDAD","TOTAL DE LA LÍNEA"]
[null,2,"Herramientas",14.95,{"$f":"IFERROR(DetallesDeFactura[[#This Row],[PRECIO POR UNIDAD]]*DetallesDeFactura[[#This Row],[CANTIDAD]],\"\")","v":{"v":29.9,"d":"29.90"}}]
[null,5,"Arandelas",9.95,{"$f":"IFERROR(DetallesDeFactura[[#This Row],[PRECIO POR UNIDAD]]*DetallesDeFactura[[#This Row],[CANTIDAD]],\"\")","v":49.75}]
[{"$nulls":4},{"$f":"IFERROR(DetallesDeFactura[[#This Row],[PRECIO POR UNIDAD]]*DetallesDeFactura[[#This Row],[CANTIDAD]],\"\")","v":0}]
[{"$nulls":4},{"$f":"IFERROR(DetallesDeFactura[[#This Row],[PRECIO POR UNIDAD]]*DetallesDeFactura[[#This Row],[CANTIDAD]],\"\")","v":0}]
[{"$nulls":4},{"$f":"IFERROR(DetallesDeFactura[[#This Row],[PRECIO POR UNIDAD]]*DetallesDeFactura[[#This Row],[CANTIDAD]],\"\")","v":0}]
[{"$nulls":4},{"$f":"IFERROR(DetallesDeFactura[[#This Row],[PRECIO POR UNIDAD]]*DetallesDeFactura[[#This Row],[CANTIDAD]],\"\")","v":0}]
[{"$nulls":4},{"$f":"IFERROR(DetallesDeFactura[[#This Row],[PRECIO POR UNIDAD]]*DetallesDeFactura[[#This Row],[CANTIDAD]],\"\")","v":0}]
[{"$nulls":4},{"$f":"IFERROR(DetallesDeFactura[[#This Row],[PRECIO POR UNIDAD]]*DetallesDeFactura[[#This Row],[CANTIDAD]],\"\")","v":0}]
[{"$nulls":4},{"$f":"IFERROR(DetallesDeFactura[[#This Row],[PRECIO POR UNIDAD]]*DetallesDeFactura[[#This Row],[CANTIDAD]],\"\")","v":0}]
[{"$nulls":4},{"$f":"IFERROR(DetallesDeFactura[[#This Row],[PRECIO POR UNIDAD]]*DetallesDeFactura[[#This Row],[CANTIDAD]],\"\")","v":0}]
[{"$nulls":4},{"$f":"IFERROR(DetallesDeFactura[[#This Row],[PRECIO POR UNIDAD]]*DetallesDeFactura[[#This Row],[CANTIDAD]],\"\")","v":0}]
[{"$nulls":4},{"$f":"IFERROR(DetallesDeFactura[[#This Row],[PRECIO POR UNIDAD]]*DetallesDeFactura[[#This Row],[CANTIDAD]],\"\")","v":0}]
[{"$nulls":4},{"$f":"IFERROR(DetallesDeFactura[[#This Row],[PRECIO POR UNIDAD]]*DetallesDeFactura[[#This Row],[CANTIDAD]],\"\")","v":0}]
[{"$nulls":4},{"$f":"IFERROR(DetallesDeFactura[[#This Row],[PRECIO POR UNIDAD]]*DetallesDeFactura[[#This Row],[CANTIDAD]],\"\")","v":0}]
[{"$nulls":4},{"$f":"IFERROR(DetallesDeFactura[[#This Row],[PRECIO POR UNIDAD]]*DetallesDeFactura[[#This Row],[CANTIDAD]],\"\")","v":0}]
[null,"Descuento"]
[null,"Total neto",null,null,{"$f":"SUM(DetallesDeFactura[TOTAL DE LA LÍNEA])-E24","v":{"v":79.65,"d":"$79.65"}}]
[null,"Impuesto"]
[null,{"$f":"\"TOTAL EN \" & REPT(ConfiguraciónDeCompañía_AbreviaturaDeDivisa,LEN(ConfiguraciónDeCompañía_AbreviaturaDeDivisa)>0)","v":"TOTAL EN USD"},null,null,{"$f":"IFERROR(E25+E26, \"\")","v":{"v":79.65,"d":"$79.65"}}]
[null,"DETALLES DE PAGO",null,null,"OTRA INFORMACIÓN"]
[null,"Nombre del beneficiario:",{"$f":" ConfiguraciónDeCompañía_NombreDelBancoBeneficiario","v":"Adventure Works"},null,{"$f":"IFERROR(ConfiguraciónDeCompañía_TuNombre,\"\")","v":""}]
[null,"Nombre del banco:",{"$f":"ConfiguraciónDeCompañía_NombreDelBanco","v":"Woodgrove Bank"},null,{"$f":"IFERROR(\"Teléfono: \" & ConfiguraciónDeCompañía_TuTeléfono,\"\")","v":"Teléfono: 425-555-0150"}]
[null,"Dirección del banco:",{"$f":"ConfiguraciónDeCompañía_DirecciónDeBanco","v":"234 Main St. Orange Grove, CA 09876"},null,{"$f":"IFERROR(\"Facsímil: \" & ConfiguraciónDeCompañía_TuFax,\"\")","v":"Facsímil: 425-555-0151"}]
[null,"Número de cuenta:",{"$f":"ConfiguraciónDeCompañía_CuentaBancaria","v":1234567},null,{"$f":"IFERROR(ConfiguraciónDeCompañía_TuURL,\"\")","v":"Adventure-Works.com"}]
[null,"Número de ruta (código SWIFT):",{"$f":"ConfiguraciónDeCompañía_RutaBancaria","v":9876543210},null,{"$f":"IFERROR(ConfiguraciónDeCompañía_TuCorreo,\"\")","v":"Accounting@Adventure-Works.com"}]
[null,"Referencia del pago:",{"$f":"NúmeroParaMostrarDeFactura","v":"0005"},null,{"$f":"IFERROR(IF(LEN(Client_PO),\"Contract/PO: \" & Client_PO,\"\"),\"\")","v":""}]
[null,{"$f":"UPPER(\"El pago deberá realizarse mediante transferencia bancaria o cheque a nombre de \" & ConfiguraciónDeCompañía_BeneficiarioDelCheque& \".\")","v":"EL PAGO DEBERÁ REALIZARSE MEDIANTE TRANSFERENCIA BANCARIA O CHEQUE A NOMBRE DE ADVENTURE WORKS."}]

{"sheet":"Configuración de la compañía","index":1,"n_rows":20,"n_cols":5,"rows_kept":20}
[null,"CONFIGURACIÓN DE LA COMPAÑÍA"]
[null,"INFORMACIÓN DE LA COMPAÑÍA DE FACTURACIÓN","VALOR",null,"Factura de cobro"]
[null,"Nombre","Guillermo Rodarte"]
[null,"Nombre de la compañía","ADVENTURE WORKS"]
[null,"Línea de dirección 1","23456 Maple Street"]
[null,"Línea de dirección 2","Orange Grove, CA 09876"]
[null,"Línea de dirección 3"]
[null,"Línea de dirección 4"]
[null,"Línea de dirección 5"]
[null,"Teléfono","425-555-0150"]
[null,"Facsímil","425-555-0151"]
[null,"Sitio web","Adventure-Works.com"]
[null,"Correo","Accounting@Adventure-Works.com"]
[null,"Abreviatura de divisa","USD"]
[null,"Nombre del beneficiario de la transferencia bancaria","Adventure Works"]
[null,"Nombre del banco","Woodgrove Bank"]
[null,"Dirección del banco","234 Main St. Orange Grove, CA 09876"]
[null,"Número de cuenta",1234567]
[null,"Número de ruta (código SWIFT)",9876543210]
[null,"Haz los cheques pagaderos a nombre de","Adventure Works"]